Cogmind - Beta 12 --- EXPLORER MODE // 2023.05.07 @ 21:23:48 Player: Sardaukar Result: Self-destructed Performance ------------- Evolutions (5) 2500 Regions Visited (12) 2400 Robots Destroyed (120) 600 Value Destroyed (4540) 4540 Prototype IDs (17) 340 Alien Tech Used (0) 0 Bonus (2170) 2170 TOTAL SCORE: 12550 Bonus ------- High Alert Combat Kills 261 Follower Combat Kills 369 Entered Garrisons 400 Used RIF Installer 1000 Aligned with FarCom 300 Friendly Fire -160 Cogmind --------- Core Integrity 589/1000 Matter 77/300 Energy 710/710 System Corruption 1% Temperature Cool (0) Movement Walking (470) Ox5 Location -5/Upper Caves Parts ------- > --- POWER (2) -------- Fission Core Micro Fission Core > --- PROPULSION (5) --- Improved Carbon-fiber Leg Armored Leg Armored Leg Biometal Leg > --- UTILITY (7) ------ Large Storage Unit Energy Well Improved Medium Armor Plating Improved Medium Armor Plating Advanced Force Field Trap Reconfigurator > --- WEAPON (4) ------- Thermic Laser Thermic Laser Quantum Rifle Quantum Rifle > --- INVENTORY (15) --- Nuclear Core Improved Carbon-fiber Leg Advanced Recalibrator Plasma Rifle Missile Launcher Peak State ------------ > --- POWER ------------ Nuclear Core Fission Core > --- PROPULSION ------- Improved Carbon-fiber Leg Improved Carbon-fiber Leg Improved Carbon-fiber Leg Armored Leg Biometal Leg > --- UTILITY ---------- Large Storage Unit Energy Well Advanced Transmission Jammer Advanced Force Field Trap Reconfigurator Bomb Drone Bay > --- WEAPON ----------- Improved Spread Laser Plasma Rifle Thermic Laser Quantum Rifle > --- INVENTORY -------- Improved Medium Armor Plating Improved Medium Armor Plating Advanced Recalibrator Plasma Rifle Thermic Laser Quantum Rifle Missile Launcher [Rating: 103] Favorites ----------- Power Fission Core Engine Ion Engine Power Core Fission Core Propulsion Titanium Leg Leg Titanium Leg Utility Improved Heat Sink Device Improved Heat Sink Storage Large Storage Unit Processor Visual Processing Unit Hackware Hacking Suite Protection Improved Medium Armor Plating Weapon Advanced Beam Rifle Energy Gun Advanced Beam Rifle Launcher Advanced EMP Blaster Build | -11 -10 -10 -10 -9 -8 -7 -7 -7 -6 -6 -5 -5 ------- Run | Jun Mat Min Exi Min Mat Fac Gar Fac Fac Gar Fac Upp Slots Evolved 11 | . 1 . . . 4 2 . . 2 . 2 . Power 1 | . . . . . . . . . 1 . . . Propulsion 3 | . . . . . 2 . . . . . 1 . Utility 5 | . 1 . . . 1 1 . . 1 . 1 . Weapon 2 | . . . . . 1 1 . . . . . . Parts Attached 158 | 6 22 4 3 3 26 21 12 14 13 17 14 3 Power 20 | 1 3 . . 1 4 5 . 1 3 . 2 . Engine 9 | 1 3 . . 1 . 3 . . 1 . . . Core 11 | . . . . . 4 2 . 1 2 . 2 . Reactor . | . . . . . . . . . . . . . Propulsion 30 | 2 5 2 1 . 7 . . 2 1 3 7 . Treads . | . . . . . . . . . . . . . Leg 30 | 2 5 2 1 . 7 . . 2 1 3 7 . Wheel . | . . . . . . . . . . . . . Hover . | . . . . . . . . . . . . . Flight . | . . . . . . . . . . . . . Utility 72 | 2 7 1 2 1 8 15 9 7 3 11 5 1 Device 39 | . 2 . 2 1 4 9 6 4 3 5 3 . Storage 8 | 1 2 . . . 1 2 . 1 . 1 . . Processor 1 | . 1 . . . . . . . . . . . Hackware 2 | . . . . . . 1 . . . 1 . . Protection 22 | 1 2 1 . . 3 3 3 2 . 4 2 1 Artifact . | . . . . . . . . . . . . . Weapon 36 | 1 7 1 . 1 7 1 3 4 6 3 . 2 Energy Gun 33 | 1 6 1 . 1 7 1 2 4 6 2 . 2 Energy Cannon . | . . . . . . . . . . . . . Ballistic Gun . | . . . . . . . . . . . . . Ballistic Cannon . | . . . . . . . . . . . . . Launcher 3 | . 1 . . . . . 1 . . 1 . . Special Weapon . | . . . . . . . . . . . . . Impact Weapon . | . . . . . . . . . . . . . Slashing Weapon . | . . . . . . . . . . . . . Piercing Weapon . | . . . . . . . . . . . . . Special Melee Weapon . | . . . . . . . . . . . . . Unidentified Prototypes 6 | . . . 1 1 1 1 2 . . . . . Parts Lost 5 | . . . . . . . . . . 2 . 3 Power . | . . . . . . . . . . . . . Propulsion 1 | . . . . . . . . . . . . 1 Utility 2 | . . . . . . . . . . 2 . . Weapon 2 | . . . . . . . . . . . . 2 Highest Loss Streak 3 | . . . . . . . . . . 2 . 3 To Critical Strikes . | . . . . . . . . . . . . . Average Slot Usage (%) 98 | . 96 100 91 99 94 99 99 99 98 99 93 89 Engine 4 | . 11 12 12 12 1 3 . . . . . . Core 5 | . . . . . 6 3 7 7 11 12 11 11 Leg 26 | . 24 25 24 25 30 28 28 28 25 25 26 23 Device 17 | . 10 12 11 12 15 17 18 23 27 23 16 11 Storage 9 | . 12 12 12 12 8 9 7 7 6 8 11 11 Protection 7 | . 11 11 12 11 7 4 9 4 2 4 4 10 Energy Gun 24 | . 22 25 18 25 24 28 26 28 23 23 22 21 Naked Turns . | . . . . . . . . . . . . . Heaviest Build 90 | 20 32 23 23 27 42 48 58 57 79 89 84 90 Greatest Support 98 | 20 20 20 20 20 68 68 68 70 78 89 98 96 Greatest Overweight (x) 5 | . 4 1 2 1 1 . . . 1 1 1 5 Average Overweight (x) . | . . . 1 1 . . . . . . . 2 Largest Inventory Capacity 15 | 10 15 10 10 10 15 15 15 15 15 15 15 15 Average Capacity 13 | 7 10 10 10 10 10 15 15 15 15 15 15 15 Most Carried 15 | . 10 10 10 10 11 15 15 15 15 15 9 8 Average Carried 10 | . 4 9 10 9 9 12 13 12 13 11 7 5 Final Capacity 15 | 10 10 10 10 10 15 15 15 15 15 15 15 15 Final Carried 15 | . 9 10 10 8 11 12 15 13 14 10 8 5 Class Distribution -------------------- 43% | Hacker-Skirmisher 39% | Hacker-Mutant 16% | Hacker-Tank Dominant Class ---------------- Hacker-Mutant | -10/Materials Hacker-Mutant | -10/Mines Hacker-Mutant | -10/Exiles Hacker-Mutant | -9/Mines Hacker-Skirmisher | -8/Materials Hacker-Skirmisher | -7/Factory Hacker-Skirmisher | -7/Garrison Hacker-Skirmisher | -7/Factory Hacker-Skirmisher | -6/Factory Hacker-Tank | -6/Garrison Hacker-Tank | -5/Factory Hacker-Mutant | -5/Upper Caves Resources | -11 -10 -10 -10 -9 -8 -7 -7 -7 -6 -6 -5 -5 ----------- Run | Jun Mat Min Exi Min Mat Fac Gar Fac Fac Gar Fac Upp Matter Collected 1882 | 182 212 148 . 40 260 264 130 148 121 285 66 26 Remotely . | . . . . . . . . . . . . . Salvage Created 4903 | . 398 158 . . 862 1077 928 540 175 745 . 20 Parts 207 | . 20 8 . . 33 50 50 17 6 23 . . Haulers Intercepted 6 | . 2 . . . 3 1 . . . . . . Recyclers Shooed 2 | . . . . . 1 1 . . . . . . Parts Field Recycled . | . . . . . . . . . . . . . Retrieved Matter . | . . . . . . . . . . . . . Parts Self-Destructed . | . . . . . . . . . . . . . Prevented . | . . . . . . . . . . . . . Kills | -11 -10 -10 -10 -9 -8 -7 -7 -7 -6 -6 -5 -5 ------- Run | Jun Mat Min Exi Min Mat Fac Gar Fac Fac Gar Fac Upp Combat Hostiles Destroyed 83 | . 7 3 . . 7 9 21 9 3 23 . 1 Guns 68 | . 4 3 . . 6 9 19 8 3 15 . 1 AOE 9 | . 2 . . . . . 2 . . 5 . . Classes Destroyed 14 | . 4 1 . . 3 4 1 . . 1 . . Worker 4 | . . . . . . 4 . . . . . . Builder 2 | . . . . . . 2 . . . . . . Hauler 6 | . 2 . . . 3 1 . . . . . . Recycler 9 | . . . . . 4 4 . 1 . . . . Operator 3 | . . . . . 2 1 . . . . . . Watcher 12 | . 3 . . . 1 5 . 1 1 1 . . Swarmer 20 | . 2 . . . . . 5 2 . 11 . . Grunt 38 | . 5 1 . . 3 6 13 2 . 8 . . Brawler 3 | . . . . . 1 . . 1 . 1 . . Duelist 1 | . . . . . . 1 . . . . . . Sentry 10 | . . 2 . . 3 . 1 3 1 . . . Hunter 4 | . . . . . . . 3 . . 1 . . Programmer 6 | . . . . . . 2 . 1 2 1 . . Behemoth 2 | . . . . . . . . . . 1 . 1 Best Kill Streak 10 | . 2 2 . . 3 8 5 3 1 10 . 1 Combat Bots Only 10 | . 2 2 . . 2 2 5 3 1 10 . 1 Max Kills in Single Turn 2 | . 1 1 . . 1 2 2 1 1 2 . 1 Gunslinging 1 | . . . . . . 1 1 . . . . . Exploded 2 | . 1 . . . . . 1 . . 2 . . Melee . | . . . . . . . . . . . . . Uniques/NPCs Destroyed . | . . . . . . . . . . . . . Combat | -11 -10 -10 -10 -9 -8 -7 -7 -7 -6 -6 -5 -5 -------- Run | Jun Mat Min Exi Min Mat Fac Gar Fac Fac Gar Fac Upp Damage Taken 3299 | . 224 196 . . 202 166 385 362 48 545 13 1158 Core 701 | . 56 54 . . 40 32 47 21 10 30 . 411 Absorbed by Shields 486 | . . . . . . 27 . . 64 297 15 83 Regen/Repaired (Parts) 81 | . 70 . . . . 11 . . . . . . Core Remaining (%) 85 | 100 . . . 56 92 . . 85 . 95 . . Volleys Fired 279 | 2 43 11 . 1 36 36 47 20 9 54 3 17 Largest 4 | 1 2 2 . 2 3 4 4 4 4 4 4 4 Hottest 339 | 50 90 80 . 105 183 244 277 299 339 329 329 329 Shots Fired 825 | 2 54 22 . 2 106 144 170 79 32 173 10 31 Gun 817 | 2 52 22 . 2 106 144 168 79 32 169 10 31 Cannon . | . . . . . . . . . . . . . Launcher 8 | . 2 . . . . . 2 . . 4 . . Special . | . . . . . . . . . . . . . Kinetic . | . . . . . . . . . . . . . Thermal 817 | 2 52 22 . 2 106 144 168 79 32 169 10 31 Explosive 6 | . 2 . . . . . . . . 4 . . Electromagnetic 2 | . . . . . . . 2 . . . . . Robot Hit Streak 29 | 1 17 28 . . 29 23 29 17 9 27 7 14 Robot Miss Streak 6 | 1 1 1 . . 4 2 2 6 5 3 2 5 Penetration Max . | . . . . . . . . . . . . . Secondary Targets 8 | . . . . . . 1 5 2 . . . . Max Gunslinging Chain 1 | . . . . . . 1 1 1 . . . . Shots Hit Robots 540 | 1 44 20 . . 77 95 79 49 21 121 4 29 Core Hits 287 | . 20 7 . . 30 45 48 20 11 95 1 10 Critical Kills . | . . . . . . . . . . . . . Critical Parts Destroyed . | . . . . . . . . . . . . . Critical Strikes 40 | 1 3 . . . 5 9 9 7 2 3 . 1 Burn 40 | 1 3 . . . 5 9 9 7 2 3 . 1 Melee Attacks . | . . . . . . . . . . . . . Impact . | . . . . . . . . . . . . . Slashing . | . . . . . . . . . . . . . Piercing . | . . . . . . . . . . . . . Sneak Attacks . | . . . . . . . . . . . . . Combat Hostiles . | . . . . . . . . . . . . . Follow-up Attacks . | . . . . . . . . . . . . . Damage Inflicted 11630 | 13 676 222 . . 1110 2075 1942 1089 429 3177 109 788 Guns 10749 | 13 536 222 . . 1110 2075 1705 1089 429 2673 109 788 Cannons . | . . . . . . . . . . . . . Explosions 881 | . 140 . . . . . 237 . . 504 . . Melee . | . . . . . . . . . . . . . Ramming . | . . . . . . . . . . . . . Kinetic . | . . . . . . . . . . . . . Thermal 10849 | 13 536 222 . . 1110 2075 1805 1089 429 2673 109 788 Explosive 644 | . 140 . . . . . . . . 504 . . Electromagnetic 137 | . . . . . . . 137 . . . . . Impact . | . . . . . . . . . . . . . Slashing . | . . . . . . . . . . . . . Piercing . | . . . . . . . . . . . . . Highest Corruption 2 | . . . . . . 2 . 1 . . . 1 Average Corruption 1 | . . . . . . 1 . 1 . . . 1 Corruption Purged 4 | . . . . . . 3 . 1 . . . . Corruption Blocked . | . . . . . . . . . . . . . Effects 14 | . . . . . . 10 . 4 . . . . Message Errors 4 | . . . . . . 4 . . . . . . Matter Fused 8 | . . . . . . 5 . 3 . . . . Data Loss (minor) 2 | . . . . . . 1 . 1 . . . . Overload Shots . | . . . . . . . . . . . . . Overflow Damage . | . . . . . . . . . . . . . Projectiles . | . . . . . . . . . . . . . Explosions . | . . . . . . . . . . . . . Melee . | . . . . . . . . . . . . . Knockbacks . | . . . . . . . . . . . . . Impact . | . . . . . . . . . . . . . Kinetic . | . . . . . . . . . . . . . Secondary . | . . . . . . . . . . . . . Self-Inflicted Damage 29 | . 29 . . . . . . . . . . . Shots 2 | . 2 . . . . . . . . . . . Rammed . | . . . . . . . . . . . . . Targets Rammed . | . . . . . . . . . . . . . Kicked . | . . . . . . . . . . . . . Crushed . | . . . . . . . . . . . . . Highest Temperature 991 | 32 304 41 . 12 276 471 414 250 330 538 354 991 Average Temperature 148 | 20 173 18 . 8 85 122 98 84 140 161 157 555 Received Heat Transfer 1188 | . 141 150 . . 135 51 207 96 9 220 . 179 Effects 72 | . . . . . . . . . 1 10 . 61 Shutdowns 24 | . . . . . . . . . . 7 . 17 Energy Bleed 5 | . . . . . . . . . . 2 . 3 Interference 10 | . . . . . . . . . 1 . . 9 Matter Decay 7 | . . . . . . . . . . 1 . 6 Short Circuit 5 | . . . . . . . . . . . . 5 Damage (minor) 10 | . . . . . . . . . . . . 10 Damage (major) 9 | . . . . . . . . . . . . 9 Damage (core) 2 | . . . . . . . . . . . . 2 Siege Activations . | . . . . . . . . . . . . . Robots Corrupted . | . . . . . . . . . . . . . Combat Hostiles . | . . . . . . . . . . . . . Parts Fried 1 | . . . . . . . 1 . . . . . Impact Corruptions . | . . . . . . . . . . . . . Robots Melted 6 | . 1 . . . 1 . . 1 . 3 . . Combat Hostiles 6 | . 1 . . . 1 . . 1 . 3 . . Parts Melted 54 | . 6 1 . . 4 11 6 15 5 6 . . Heat Transferred 22115 | 111 1754 500 . . 2874 4356 3554 2324 1060 4128 157 1297 Parts Sabotaged . | . . . . . . . . . . . . . Parts Stolen . | . . . . . . . . . . . . . Parts Stripped . | . . . . . . . . . . . . . Power Chain Reactions 1 | . . . . . . . 1 . . . . . Missiles Intercepted . | . . . . . . . . . . . . . Alert | -11 -10 -10 -10 -9 -8 -7 -7 -7 -6 -6 -5 -5 ------- Run | Jun Mat Min Exi Min Mat Fac Gar Fac Fac Gar Fac Upp Peak Influence 798 | . 141 66 . . 222 210 798 479 122 678 264 . Initial 310 | . . 10 . . . 40 21 310 9 12 264 . Average 142 | . 32 23 . . 93 58 465 136 38 292 178 . Maximum Alert Level 3 | . . . . . 1 1 3 2 . 2 1 . Low Security (%) 74 | 100 100 100 . 100 83 99 15 72 100 41 40 . Level 1 10 | . . . . . 16 . 14 21 . 14 59 . Level 2 12 | . . . . . . . 50 6 . 43 . . Level 3 2 | . . . . . . . 20 . . . . . Level 4 . | . . . . . . . . . . . . . Level 5 . | . . . . . . . . . . . . . High Security . | . . . . . . . . . . . . . Max Security . | . . . . . . . . . . . . . Squads Dispatched 10 | . . . . . . 2 . 5 2 . 1 . Investigation 4 | . . . . . . . . 4 . . . . Extermination 6 | . . . . . . 2 . 1 2 . 1 . Reinforcement . | . . . . . . . . . . . . . Assault . | . . . . . . . . . . . . . Garrison . | . . . . . . . . . . . . . Intercept . | . . . . . . . . . . . . . Searches Triggered . | . . . . . . . . . . . . . Construction Impeded . | . . . . . . . . . . . . . Haulers Reinforced . | . . . . . . . . . . . . . Active Scanning Responses . | . . . . . . . . . . . . . Cargo Convoy Interrupts 1 | . . . . . . 1 . . . . . . Stealth | -11 -10 -10 -10 -9 -8 -7 -7 -7 -6 -6 -5 -5 --------- Run | Jun Mat Min Exi Min Mat Fac Gar Fac Fac Gar Fac Upp Distress Signals 6 | . . . . . 2 2 . 1 . 1 . . Communications Jammed 7 | . . . . . . . . . 7 . . . Distress Signals 7 | . . . . . . . . . 7 . . . Times Spotted 121 | . 12 4 . . 14 19 28 11 5 24 2 2 Peak Tracking Total 8 | . 4 2 . . 5 4 8 3 2 5 1 1 Tactical Retreats 2 | . . . . . . 1 . . 1 . . . Traps | -11 -10 -10 -10 -9 -8 -7 -7 -7 -6 -6 -5 -5 ------- Run | Jun Mat Min Exi Min Mat Fac Gar Fac Fac Gar Fac Upp Traps Triggered 28 | . 6 . . . 2 2 9 3 1 3 2 . Indirectly . | . . . . . . . . . . . . . Trap Hack Attempts . | . . . . . . . . . . . . . Triggered . | . . . . . . . . . . . . . Disarmed . | . . . . . . . . . . . . . Reprogrammed . | . . . . . . . . . . . . . Reused 14 | . . . . . 2 1 . 7 . . 4 . Traps Reconfigurated 51 | . . . . . 3 8 12 17 . 1 10 . Traps Extracted . | . . . . . . . . . . . . . Installed . | . . . . . . . . . . . . . Triggered 17 | . . . . . 2 2 . 9 . . 4 . Machines | -11 -10 -10 -10 -9 -8 -7 -7 -7 -6 -6 -5 -5 ---------- Run | Jun Mat Min Exi Min Mat Fac Gar Fac Fac Gar Fac Upp Machines Disabled 10 | . 1 1 . . . 1 5 . . . 2 . Max in Single Turn 1 | . 1 . . . . 1 1 . . . . . Garrison Access 2 | . . . . . . 1 . . 1 . . . Garrison Relay 2 | . . . . . . . 2 . . . . . Machines Repaired . | . . . . . . . . . . . . . Machines Sabotaged . | . . . . . . . . . . . . . Overloaded Fab Kills . | . . . . . . . . . . . . . Hacking | -11 -10 -10 -10 -9 -8 -7 -7 -7 -6 -6 -5 -5 --------- Run | Jun Mat Min Exi Min Mat Fac Gar Fac Fac Gar Fac Upp Machines Accessed 48 | . 9 . 2 1 2 10 1 10 5 3 5 . Terminals 22 | . 7 . . . 1 1 1 6 1 3 2 . Fabricators 6 | . . . . . . 3 . 2 . . 1 . Repair Stations 5 | . 1 . . . . 2 . 1 1 . . . Recycling Units 7 | . 1 . . . 1 2 . . 1 . 2 . Scanalyzers 1 | . . . . . . . . 1 . . . . Garrison Access 4 | . . . . . . 2 . . 2 . . . Total Hacks 106 | . 25 . 4 1 5 18 1 30 9 5 8 . Successful 65 | . 16 . 4 1 2 12 1 17 5 3 4 . Failed 41 | . 9 . . . 3 6 . 13 4 2 4 . Catastrophic 3 | . . . . . . . . 1 . . 2 . Database Lockouts . | . . . . . . . . . . . . . Manual 17 | . 9 . 1 . . 2 . 2 2 . 1 . Terminals 52 | . 20 . . . 2 2 1 16 2 5 4 . Fabricators 9 | . . . . . . 5 . 3 . . 1 . Repair Stations 12 | . 2 . . . . 4 . 4 2 . . . Recycling Units 17 | . 3 . . . 3 5 . . 3 . 3 . Scanalyzers 7 | . . . . . . . . 7 . . . . Garrison Access 4 | . . . . . . 2 . . 2 . . . Terminal Hacks 31 | . 11 . 4 1 . 2 1 9 . 3 . . Record 4 | . . . 4 . . . . . . . . . Part Schematic 1 | . 1 . . . . . . . . . . . Robot Analysis 3 | . 2 . . . . 1 . . . . . . Prototype ID Bank 4 | . 2 . . . . . . 2 . . . . Open Door 1 | . . . . 1 . . . . . . . . Level Access Points 2 | . . . . . . 1 . 1 . . . . Branch Access Points 2 | . 1 . . . . . . 1 . . . . Emergency Access Points 1 | . . . . . . . . . . 1 . . Terminal Index 2 | . 1 . . . . . . 1 . . . . Alert Level 1 | . 1 . . . . . . . . . . . Unreport Threat 4 | . 1 . . . . . . 3 . . . . Locate Traps 2 | . 1 . . . . . . 1 . . . . Zone Layout 1 | . 1 . . . . . . . . . . . Garrison Registry 1 | . . . . . . . . . . 1 . . Patrol Navigation 1 | . . . . . . . . . . 1 . . Security Stations 1 | . . . . . . . 1 . . . . . Fabricator Hacks 8 | . . . . . . 4 . 3 . . 1 . Network Status 2 | . . . . . . 1 . 1 . . . . Build 6 | . . . . . . 3 . 2 . . 1 . Repair Station Hacks 7 | . 2 . . . . 3 . 1 1 . . . Scan Component 5 | . 1 . . . . 2 . 1 1 . . . Repair 2 | . 1 . . . . 1 . . . . . . Recycling Unit Hacks 9 | . 2 . . . 2 1 . . 1 . 3 . Report Inventory 1 | . 1 . . . . . . . . . . . Retrieve Components 8 | . 1 . . . 2 1 . . 1 . 3 . Scanalyzer 4 | . . . . . . . . 4 . . . . Insert Component 3 | . . . . . . . . 3 . . . . Analyze 1 | . . . . . . . . 1 . . . . Garrison Access Hacks 4 | . . . . . . 2 . . 2 . . . Unlock Access 2 | . . . . . . 1 . . 1 . . . Seal Access 2 | . . . . . . 1 . . 1 . . . Unauthorized Hacks 2 | . 1 . . . . . . . 1 . . . Terminals 2 | . 1 . . . . . . . 1 . . . Botnet 2 | . 1 . . . . . . . 1 . . . Fabricators . | . . . . . . . . . . . . . Repair Stations . | . . . . . . . . . . . . . Recycling Units . | . . . . . . . . . . . . . Scanalyzers . | . . . . . . . . . . . . . Garrison Access . | . . . . . . . . . . . . . Data Cores Recovered 3 | . . . . . 2 1 . . . . . . Used 2 | . . . . . 1 1 . . . . . . Hacking Detections 29 | . 4 . . . 2 5 . 9 4 2 3 . Full Trace Events 3 | . . . . . . . . 3 . . . . Feedback Events 1 | . . . . . . . . 1 . . . . Corruption 1 | . . . . . . . . 1 . . . . Feedback Blocked . | . . . . . . . . . . . . . Robot Schematics Acquired . | . . . . . . . . . . . . . Robots Built 7 | . . . . . . 5 . 1 . . 1 . Authchips . | . . . . . . . . . . . . . Time 357 | . . . . . . 148 . 40 . . 169 . Total Robot Build Rating 24 | . . . . . . 17 . 1 . . 6 . Part Schematics Acquired 2 | . 1 . . . . . . 1 . . . . Parts Built 4 | . . . . . . 2 . 2 . . . . Authchips . | . . . . . . . . . . . . . Time 190 | . . . . . . 95 . 95 . . . . Total Part Build Rating 20 | . . . . . . 10 . 10 . . . . Parts Repaired 2 | . 1 . . . . 1 . . . . . . Time 39 | . 26 . . . . 13 . . . . . . Parts Recycled . | . . . . . . . . . . . . . Recycled Matter . | . . . . . . . . . . . . . Retrieved Matter . | . . . . . . . . . . . . . Retrieved Components 21 | . 9 . . . . 8 . . 2 . 2 . Parts Scanalyzed 1 | . . . . . . . . 1 . . . . Part Schematics Acquired 1 | . . . . . . . . 1 . . . . Parts Damaged . | . . . . . . . . . . . . . Bothacking | -11 -10 -10 -10 -9 -8 -7 -7 -7 -6 -6 -5 -5 ------------ Run | Jun Mat Min Exi Min Mat Fac Gar Fac Fac Gar Fac Upp Used RIF Installer 2 | . . . . . . . 1 . . 1 . . Alert ID Control 1 | . . . . . . . . . . 1 . . Robots Hacked . | . . . . . . . . . . . . . Non-combat . | . . . . . . . . . . . . . Combat . | . . . . . . . . . . . . . Robot Hacks Applied . | . . . . . . . . . . . . . Relay Couplers Released 7 | . . . . . . . 7 . . . . . Machine Destruction 7 | . . . . . . . 7 . . . . . Attached 1 | . . . . . . . . . . 1 . . Fabnet Peak Effective % . | . . . . . . . . . . . . . Robots Rewired 4 | . . . . . . . 4 . . . . . Allies Hacked 2 | . . . . . . . 2 . . . . . Hacks Repelled . | . . . . . . . . . . . . . Allies | -11 -10 -10 -10 -9 -8 -7 -7 -7 -6 -6 -5 -5 -------- Run | Jun Mat Min Exi Min Mat Fac Gar Fac Fac Gar Fac Upp Total Allies 13 | . . 2 . . . 5 4 1 . . 1 . Largest Group 5 | . . 2 2 . . 4 5 1 . . 1 1 Highest-Rated Group 60 | . . 45 45 . . 48 60 6 . . 49 45 Highest-Rated Ally 49 | . . 31 31 . . 12 12 6 . . 49 45 Total Orders 12 | . . . . . 3 1 . 6 . 1 1 . EXPLORE 6 | . . . . . 1 1 . 2 . 1 1 . RETURN 6 | . . . . . 2 . . 4 . . . . Ally Attacks 66 | . . 2 . . 2 2 45 3 . 4 5 3 Total Damage 1049 | . . 20 . . . . 487 . . . 333 209 Kills 10 | . . 1 . . . . 7 . . . 2 . Allies Corrupted . | . . . . . . . . . . . . . Allies Melted . | . . . . . . . . . . . . . Intel | -11 -10 -10 -10 -9 -8 -7 -7 -7 -6 -6 -5 -5 ------- Run | Jun Mat Min Exi Min Mat Fac Gar Fac Fac Gar Fac Upp Robot Analysis Total 3 | . 2 . . . . 1 . . . . . . Derelict Logs Recovered 1 | . . 1 . . . . . . . . . . Drone Launches 28 | . . . . . 9 3 . 7 . 4 5 . Drone Recoveries 12 | . . . . . 7 1 . 4 . . . . Exploration | -11 -10 -10 -10 -9 -8 -7 -7 -7 -6 -6 -5 -5 ------------- Run | Jun Mat Min Exi Min Mat Fac Gar Fac Fac Gar Fac Upp Turns Passed 12363 | 53 1485 1360 560 752 670 1386 1504 1369 1023 1288 675 238 Spaces Moved 6513 | 38 717 701 288 370 353 715 883 950 458 704 291 45 Core 8 | 7 1 . . . . . . . . . . . Treads . | . . . . . . . . . . . . . Legs 6505 | 31 716 701 288 370 353 715 883 950 458 704 291 45 Wheels . | . . . . . . . . . . . . . Hover . | . . . . . . . . . . . . . Flight . | . . . . . . . . . . . . . Fastest Speed 50 | 50 120 120 190 190 120 130 130 125 122 117 117 118 Average Speed 148 | 107 179 186 192 190 125 130 130 125 145 133 118 282 Slowest Speed 470 | 120 250 190 260 190 190 130 130 130 192 192 190 470 Overloaded Moves . | . . . . . . . . . . . . . Propulsion Burnouts . | . . . . . . . . . . . . . Robots Hopped . | . . . . . . . . . . . . . Cave-ins Triggered . | . . . . . . . . . . . . . Exploration Rate (%) 48 | 4 90 97 62 75 24 26 81 33 14 90 23 10 Regions Visited 12 Branch Regions 4 Pre-discovered Areas 3 | . . 2 1 . . . . . . . . . Known Exits Taken 10 | 1 1 1 1 1 1 1 . 1 1 . 1 . Unknown Exits Taken . | . . . . . . . . . . . . . Scrap Searched 2 | . . 2 . . . . . . . . . . Spaces Dug 1 | . . . . . . . . . 1 . . . Terrain Destroyed 23 | . 11 . . . . . 4 1 3 4 . . Melee . | . . . . . . . . . . . . . Projectile 5 | . . . . . . . . 1 3 1 . . AOE 18 | . 11 . . . . . 4 . . 3 . . Terrain Rammed . | . . . . . . . . . . . . . Walls Destroyed . | . . . . . . . . . . . . . Machines Disabled . | . . . . . . . . . . . . . Actions | -11 -10 -10 -10 -9 -8 -7 -7 -7 -6 -6 -5 -5 --------- Run | Jun Mat Min Exi Min Mat Fac Gar Fac Fac Gar Fac Upp Total 8609 | 45 851 732 295 419 504 1082 1125 1084 795 936 611 130 Wait 1464 | . 59 14 . 39 60 286 130 80 303 129 299 65 Move 6503 | 37 716 700 287 369 352 715 882 949 458 703 290 45 Hop . | . . . . . . . . . . . . . Pick Up 46 | . 6 1 . 2 11 10 4 6 3 3 . . Fast Attach 48 | 6 13 . 3 1 10 3 4 1 . 1 6 . Attach 35 | . . . . 1 4 6 1 4 5 7 4 3 Detach 21 | . 1 . 1 . 1 3 1 4 3 5 2 . Swap 75 | . 9 4 . 1 12 12 7 9 8 9 4 . Drop 80 | . 4 2 4 5 18 11 6 11 6 10 3 . Fire 279 | 2 43 11 . 1 36 36 47 20 9 54 3 17 Melee . | . . . . . . . . . . . . . Ram . | . . . . . . . . . . . . . Kick . | . . . . . . . . . . . . . Crush . | . . . . . . . . . . . . . Escape Stasis 39 | . . . . . . . 24 . . 15 . . Rewire 19 | . . . . . . . 19 . . . . . Trap . | . . . . . . . . . . . . . Miscellaneous . | . . . . . . . . . . . . . Route ------- -11/Junkyard -10/Materials (discovered 4 exits: *Mat x3 / *Min) -10/Mines (discovered 3 exits: *Mat x2 / *Exi) -10/Exiles (discovered 2 exits: *Min x2) -9/Mines -8/Materials -7/Factory (discovered 5 exits: *Fac x4 / Gar) -7/Garrison (discovered 4 exits: *Fac x4) -7/Factory (discovered 6 exits: *Fac x4 / Low x2) -6/Factory (discovered 2 exits: *Fac / Gar) -6/Garrison (discovered 3 exits: *Fac x3) -5/Factory (discovered 2 exits: *Fac / *Upp) -5/Upper Caves History --------- Turn | Location | Event 9 | -11/Junkyard | Identified exit to Materials 9 | -11/Junkyard | Discovered exit to Materials (range 15) 54 | -11/Junkyard | Entered Materials 54 | -10/Materials | Evolved 1 slot: Utility x1 312 | -10/Materials | Build established: Hacker-Mutant 565 | -10/Materials | Identified exit to Materials 565 | -10/Materials | Discovered exit to Materials (range 14) 621 | -10/Materials | Identified exit to Mines 1184 | -10/Materials | Repaired Aluminum Leg 1241 | -10/Materials | Discovered exit to Materials (range 11) 1403 | -10/Materials | Discovered exit to Materials (range 4) 1539 | -10/Materials | Entered Mines 1568 | -10/Mines | Discovered exit to Materials (range 9) 1580 | -10/Mines | Discovered exit to Materials (range 16) 2457 | -10/Mines | Learned location of Storage (-9) 2886 | -10/Mines | Deemed a non-threat by the Exiles lab entrance 2886 | -10/Mines | Identified exit to Exiles 2886 | -10/Mines | Discovered exit to Exiles (range 5) 2899 | -10/Mines | Entered Exiles 2899 | -10/Exiles | Accompanied by 2 allies 2928 | -10/Exiles | Identified exit to Mines 2928 | -10/Exiles | Discovered exit to Mines (range 14) 2929 | -10/Exiles | Led the pair of lost Derelicts to a safe place 2977 | -10/Exiles | Met 8R-AWN 3004 | -10/Exiles | Met EX-HEX 3059 | -10/Exiles | Met EX-BIN 3086 | -10/Exiles | Aligned with FarCom system 3088 | -10/Exiles | Given EX-Vault access code 3131 | -10/Exiles | Opened EX-Vault 3145 | -10/Exiles | Found Prototype Device 3145 | -10/Exiles | Identified Trap Reconfigurator 3271 | -10/Exiles | Warned to stay clear of 0b10 Research branches 3326 | -10/Exiles | Met EX-DEC 3337 | -10/Exiles | Learned location of Zion (-6) 3434 | -10/Exiles | Discovered exit to Mines (range 14) 3459 | -10/Exiles | Left Exiles lab with Trap Reconfigurator 3459 | -10/Exiles | Entered Mines 3554 | -9/Mines | YI-UF0 nonchalantly dropped a Grenade Launcher on the ground 4138 | -9/Mines | Identified exit to Materials 4138 | -9/Mines | Discovered exit to Materials (range 16) 4179 | -9/Mines | Found the Drone Emporium 4189 | -9/Mines | Found Prototype Device 4189 | -9/Mines | Identified Bomb Drone Bay 4211 | -9/Mines | Entered Materials 4211 | -8/Materials | Evolved 4 slots: Propulsion x2, Utility x1, Weapon x1 4590 | -8/Materials | Build established: Hacker-Skirmisher 4606 | -8/Materials | Identified exit to Factory 4606 | -8/Materials | Discovered exit to Factory (range 15) 4881 | -8/Materials | Entered Factory 4881 | -7/Factory | Evolved 2 slots: Utility x1, Weapon x1 5498 | -7/Factory | Fabricated K-01 Serf? 5580 | -7/Factory | P-60 Hacker assimilated allied Serf 4a 5596 | -7/Factory | Identified exit to Factory 5596 | -7/Factory | Discovered exit to Factory (range 6) 5745 | -7/Factory | Repaired Sml. Battery 6088 | -7/Factory | Fabricated Fission Core (x2) 6222 | -7/Factory | Cargo convoy interrupted 6259 | -7/Factory | Fabricated S-27 Virus? 6262 | -7/Factory | Identified exit to Garrison 6267 | -7/Factory | Entered Garrison 6267 | -7/Garrison | Accompanied by 4 allies 6332 | -7/Garrison | Triggered checkpoint 6343 | -7/Garrison | Garrison Relay disabled 6490 | -7/Garrison | Identified exit to Factory 6490 | -7/Garrison | Discovered exit to Factory (range 6) 6492 | -7/Garrison | Triggered checkpoint 6588 | -7/Garrison | Triggered checkpoint 6785 | -7/Garrison | Found Prototype Device 6785 | -7/Garrison | Identified Active Sensor Suite 6811 | -7/Garrison | Discovered exit to Factory (range 10) 6868 | -7/Garrison | Triggered checkpoint 6900 | -7/Garrison | Garrison Relay disabled 7004 | -7/Garrison | Build established: Hacker-Tank 7064 | -7/Garrison | Triggered checkpoint 7125 | -7/Garrison | Discovered exit to Factory (range 10) 7156 | -7/Garrison | Triggered checkpoint 7182 | -7/Garrison | Learned Factory security intel 7319 | -7/Garrison | Build established: Hacker-Skirmisher 7440 | -7/Garrison | Discovered exit to Factory (range 15) 7736 | -7/Garrison | Installed Relay Interface Framework 7771 | -7/Garrison | Entered Factory 7993 | -7/Factory | Fabricated K-01 Serf (x1) 8832 | -7/Factory | Fabricated Force Field? 9124 | -7/Factory | Identified exit to Lower Caves 9140 | -7/Factory | Entered another Factory area 9140 | -6/Factory | Evolved 2 slots: Power x1, Utility x1 9503 | -6/Factory | Build established: Hacker-Tank 9604 | -6/Factory | Identified exit to Factory 9604 | -6/Factory | Discovered exit to Factory (range 11) 9923 | -6/Factory | Build established: Hacker-Skirmisher 10163 | -6/Factory | Identified exit to Garrison 10163 | -6/Factory | Entered Garrison 10200 | -6/Garrison | Triggered checkpoint 10411 | -6/Garrison | Spotted B-75 Beast 10419 | -6/Garrison | Destroyed B-75 Beast 10495 | -6/Garrison | Build established: Hacker-Tank 10580 | -6/Garrison | Triggered checkpoint 10696 | -6/Garrison | Triggered checkpoint 10738 | -6/Garrison | Triggered checkpoint 10745 | -6/Garrison | Destroyed 10 combat bots 10861 | -6/Garrison | Discovered exit to Factory (range 12) 10892 | -6/Garrison | Found Relay Coupler [Proto] 11107 | -6/Garrison | Discovered exit to Factory (range 10) 11146 | -6/Garrison | Triggered checkpoint 11187 | -6/Garrison | Build established: Hacker-Skirmisher 11395 | -6/Garrison | Discovered exit to Factory (range 11) 11400 | -6/Garrison | Discovered exit to Factory (range 73) 11400 | -6/Garrison | Discovered exit to Factory (range 65) 11400 | -6/Garrison | Discovered exit to Factory (range 12) 11424 | -6/Garrison | Expanded RIF knowledge: Alert ID Control 11451 | -6/Garrison | Entered Factory 11451 | -5/Factory | Evolved 2 slots: Propulsion x1, Utility x1 11500 | -5/Factory | Identified exit to Upper Caves 11500 | -5/Factory | Discovered exit to Upper Caves (range 107) 11522 | -5/Factory | Identified exit to Factory 11522 | -5/Factory | Discovered exit to Factory (range 187) 11623 | -5/Factory | Build established: Hacker-Mutant 11964 | -5/Factory | Fabricated D-63 Destroyer? 12032 | -5/Factory | Build established: Hacker-Tank 12126 | -5/Factory | Entered Upper Caves 12126 | -5/Upper Caves | Accompanied by 1 ally 12152 | -5/Upper Caves | Spotted B-75 Beast 12217 | -5/Upper Caves | Destroyed B-75 Beast 12239 | -5/Upper Caves | Lost 3 parts (1n2w) 12364 | -5/Upper Caves | Self-destructed Last Messages --------------- 12215_ Overheating: Quantum Rifle damaged (-29). 12216_ Overheating: Broken Biometal Leg damaged (-24). 12217_ Arm. Leg broken. 12217_ Overheating: Short circuit. 12217_ B-75 Beast destroyed. 12218_ Overheating: System interference. 12218_ Thermic Laser temporarily disabled. 12218_ Quantum Rifle temporarily disabled. 12219_ Power failure, Fission Core shutdown. 12219_ Power failure, Mic. Fission Core shutdown. 12219_ Overheating: Matter decay (-14). 12220_ Overheating: Core damaged (-200). 12223_ Overheating: Energy Well damaged (-45). 12226_ Power failure, Fission Core shutdown. 12228_ Power failure, Mic. Fission Core shutdown. 12228_ The unstable cave ceiling collapses. 12265_ Acquired 17 matter. 12266_ The unstable cave ceiling collapses. 12270_ Acquired 1 matter. 12305_ The unstable cave ceiling collapses. Map ----- +----------------------------------------------------+ | ?????????????????????????????????????????????????? | | ?????????????????????????????????????????????????? | | ?????????????????????????????????????????????????? | | ?????????????????????????????????????????????????? | | ?????????????????????????????????????????????????? | | ?????????????????????????????????????????????????? | | ????????????????????????????????????????##???????? | | ???????????????????????###?????????????# ##??????? | | ??????????????????###### ###?####???### #??????? | | ?????????????????## ## ### ##### #??????#? | | ????????????????## $ ## #?????? ? | | ????????????????# # ## #??????? #? | | ?????????????????## # #????### #? | | ?????????????????# % # ##??## # ## | | ?????????????????## % #### | | ???????????????#### %# # | | ???????????????# %%!#### # | | ???????????????## ;#??## ### | | ????????????????## # ;#???## ##?# | | ?????????????????## #### ##???## ###??## | | ??????????????????###??# ##???#####?????### | | ?????????????????????##### #????????????????### | | ??????????????????#### #?# #??????????????????? | | ??????????????# ## ## #??????????????????? | | ??????????????# ####???????????????? | | ??????????????# p @ #??????????????? | | ?????????????# #??????????????? | | ?????????? ####### ##??????????????? | | ??????????? ???????###???????????????? | | ??????????? ## ??????????????????????????? | | ?????????????## ??????????????????????????? | | ??????????????### ???????????????????????????? | | ????????????????## ????????????????????????????? | | ?????????????????## ????????????????????????????? | | ??????????????????# ?????????????????????????????? | | ??????????????????#??????????????????????????????? | | ?????????????????????????????????????????????????? | | ?????????????????????????????????????????????????? | | ?????????????????????????????????????????????????? | | ?????????????????????????????????????????????????? | | ?????????????????????????????????????????????????? | | ?????????????????????????????????????????????????? | | ?????????????????????????????????????????????????? | | ?????????????????????????????????????????????????? | | ?????????????????????????????????????????????????? | | ?????????????????????????????????????????????????? | | ?????????????????????????????????????????????????? | | ?????????????????????????????????????????????????? | | ?????????????????????????????????????????????????? | | ?????????????????????????????????????????????????? | +----------------------------------------------------+ Best States ------------- Heat Dissipation 73 Coolant Potential 65 Energy Generation 31 Energy Capacity 800 Matter Stores 300 Matter Capacity 300 Sight Range 18 Terrain Scan Density 10 Jamming Range 16 Additional Mass Support 9 Base Temperature (-) 100 Armor Coverage 450 Resistance: KI 35 Resistance: TH 35 Resistance: EX 35 Resistance: EM 35 Resistance: I 35 Resistance: S 35 Resistance: P 35 Evasion (%) 55 Offensive Hacking 30 Item Schematics ----------------- Lrg. Storage Unit | -10/Materials | Hacked Adv. Beam Rifle | -7/Factory | Scanalyzed Robot Schematics ------------------ None Fabricated ------------ K-01 Serf | x1 | -7/Factory | Preloaded Fission Core | x2 | -7/Factory | Preloaded S-27 Virus | x4 | -7/Factory | Preloaded K-01 Serf | x1 | -7/Factory | Preloaded Force Field | x2 | -7/Factory | Preloaded D-63 Destroyer | x1 | -5/Factory | Preloaded Alien Tech Used ----------------- None Achievements -------------- None Challenges ------------ None Game ------ Seed ReinforcedSmallPropulsion Manual? 0 Play Time 02:11:05 Cumulative 302.6 hours Start 2023.05.06 @ 23:26:43 End 2023.05.07 @ 21:23:48 Sessions 8 Manual Loads 0 Difficulty Explorer Special Mode None Game No. 94 Rogue 7 Adventurer 71 Explorer 16 Win Type - Total 7 Types 6/0/1/0/0/0/0/0/0 Lore% 70 Gallery% 77 Achievement% 64 Wizard Run 0 Options --------- ASCII 0 Keyboard 0 Movement Mouse Keybinds 0 Fullscreen 2 Font 20/Terminus Map View 66x50 Tactical HUD 1 Map Filters NONE Filters NONE Steam 1 RUN: 23e341c3-09b6-4d69-bc7a-bd13dc940a86